[Event "Live Chess"]
[Site "Chess.com"]
[Date "2024.06.02"]
[Round "-"]
[White "stevochess11"]
[Black "LL220284LL"]
[Result "0-1"]
[WhiteElo "1707"]
[BlackElo "2514"]
[TimeControl "300"]
[EndTime "16:03:14 PDT"]
[Termination "LL220284LL won by checkmate"]

1. d4 {[%clk 0:04:57.9]} 1... e6 {[%clk 0:04:58.7]} 2. Nf3 {[%clk 0:04:56.7]}
2... b6 {[%clk 0:04:57.9]} 3. e3 {[%clk 0:04:54.6]} 3... Bb7 {[%clk 0:04:57.4]}
4. Bd3 {[%clk 0:04:53.7]} 4... f5 {[%clk 0:04:56.8]} 5. c4 {[%clk 0:04:51.2]}
5... Nf6 {[%clk 0:04:56.2]} 6. Nc3 {[%clk 0:04:46.6]} 6... Be7 {[%clk
0:04:54.2]} 7. d5 {[%clk 0:04:40.7]} 7... O-O {[%clk 0:04:44.5]} 8. dxe6 {[%clk
0:04:30.4]} 8... dxe6 {[%clk 0:04:42.6]} 9. Ng5 {[%clk 0:04:29.4]} 9... Qc8
{[%clk 0:04:39.4]} 10. Qb3 {[%clk 0:04:23.8]} 10... Na6 {[%clk 0:04:36.1]} 11.
Be2 {[%clk 0:03:38]} 11... Nc5 {[%clk 0:04:31.3]} 12. Qc2 {[%clk 0:03:27.2]}
12... h6 {[%clk 0:04:27.6]} 13. Nf3 {[%clk 0:03:21.5]} 13... a5 {[%clk
0:04:24.1]} 14. O-O {[%clk 0:03:15.4]} 14... Nfe4 {[%clk 0:04:21.5]} 15. Bd3
{[%clk 0:03:09.5]} 15... Nxd3 {[%clk 0:04:19.1]} 16. Qxd3 {[%clk 0:03:08]} 16...
Rd8 {[%clk 0:04:15.2]} 17. Qc2 {[%clk 0:03:06.7]} 17... Bf6 {[%clk 0:04:11.4]}
18. Nd4 {[%clk 0:03:00.9]} 18... Nxc3 {[%clk 0:04:08.6]} 19. bxc3 {[%clk
0:02:58.7]} 19... Be4 {[%clk 0:04:01.3]} 20. Qb3 {[%clk 0:02:55.8]} 20... e5
{[%clk 0:03:53.4]} 21. f3 {[%clk 0:02:47.5]} 21... Bd3 {[%clk 0:03:46.5]} 22.
Nc6 {[%clk 0:02:38.2]} 22... Bxf1 {[%clk 0:03:42.4]} 23. Nxd8 {[%clk 0:02:34.9]}
23... Qxd8 {[%clk 0:03:41.5]} 24. Kxf1 {[%clk 0:02:33.1]} 24... Qd3+ {[%clk
0:03:40.1]} 25. Kg1 {[%clk 0:02:31.3]} 25... Rd8 {[%clk 0:03:37.9]} 26. c5+
{[%clk 0:02:13]} 26... Kh7 {[%clk 0:03:36.3]} 27. cxb6 {[%clk 0:02:11.1]} 27...
cxb6 {[%clk 0:03:32.9]} 28. Kf2 {[%clk 0:01:41.1]} 28... e4 {[%clk 0:03:25.4]}
29. fxe4 {[%clk 0:01:33.9]} 29... fxe4 {[%clk 0:03:20.2]} 30. Qxb6 {[%clk
0:01:18.4]} 30... Bh4+ {[%clk 0:03:14.7]} 31. g3 {[%clk 0:01:16.3]} 31... Qc2+
{[%clk 0:03:13.3]} 32. Kf1 {[%clk 0:01:11.1]} 32... Rd1# {[%clk 0:03:11.9]} 0-1

[Event "Live Chess"]
[Site "Chess.com"]
[Date "2024.06.02"]
[Round "-"]
[White "NottheBishopSacrifice"]
[Black "ShanthamGrarks"]
[Result "0-1"]
[WhiteElo "2286"]
[BlackElo "1819"]
[TimeControl "300"]
[EndTime "16:03:35 PDT"]
[Termination "ShanthamGrarks won by checkmate"]

1. Nf3 {[%clk 0:04:57]} 1... d6 {[%clk 0:04:54.2]} 2. g3 {[%clk 0:04:56.4]} 2...
Nf6 {[%clk 0:04:46.7]} 3. Bg2 {[%clk 0:04:56]} 3... e5 {[%clk 0:04:45.6]} 4. O-O
{[%clk 0:04:55.2]} 4... Be7 {[%clk 0:04:44.6]} 5. d3 {[%clk 0:04:54.4]} 5... O-O
{[%clk 0:04:44]} 6. Nbd2 {[%clk 0:04:54.1]} 6... Nc6 {[%clk 0:04:41.2]} 7. e4
{[%clk 0:04:53.4]} 7... Bg4 {[%clk 0:04:38.4]} 8. Nc4 {[%clk 0:04:52]} 8... Qd7
{[%clk 0:04:34.5]} 9. Ne3 {[%clk 0:04:51.2]} 9... Bh3 {[%clk 0:04:31.8]} 10.
Bxh3 {[%clk 0:04:49.7]} 10... Qxh3 {[%clk 0:04:29.7]} 11. Nf5 {[%clk 0:04:49.3]}
11... Ng4 {[%clk 0:04:23.3]} 12. Nxe7+ {[%clk 0:04:46.5]} 12... Nxe7 {[%clk
0:04:21.4]} 13. Be3 {[%clk 0:04:43.1]} 13... Ng6 {[%clk 0:04:16.4]} 14. Re1
{[%clk 0:04:38.5]} 14... f5 {[%clk 0:04:13.4]} 15. Qe2 {[%clk 0:04:28.5]} 15...
f4 {[%clk 0:04:12.1]} 16. Bd2 {[%clk 0:04:22.4]} 16... fxg3 {[%clk 0:03:59.2]}
17. hxg3 {[%clk 0:04:16.8]} 17... Rxf3 {[%clk 0:03:43.7]} 18. Qxf3 {[%clk
0:04:15.2]} 18... Qh2+ {[%clk 0:03:41.5]} 19. Kf1 {[%clk 0:04:13.9]} 19... Rf8
{[%clk 0:03:38.7]} 20. Qxg4 {[%clk 0:04:09.8]} 20... Qxf2# {[%clk 0:03:35.6]}
0-1

[Event "Live Chess"]
[Site "Chess.com"]
[Date "2024.06.02"]
[Round "-"]
[White "lyricalschemes"]
[Black "KeithArkell"]
[Result "1/2-1/2"]
[WhiteElo "2330"]
[BlackElo "2416"]
[TimeControl "300"]
[EndTime "16:03:54 PDT"]
[Termination "Game drawn - timeout vs insufficient material"]

1. e4 {[%clk 0:04:46.7]} 1... c6 {[%clk 0:04:58.8]} 2. d4 {[%clk 0:04:42.4]}
2... d5 {[%clk 0:04:58.7]} 3. Nc3 {[%clk 0:04:41.6]} 3... dxe4 {[%clk
0:04:57.2]} 4. Nxe4 {[%clk 0:04:41.5]} 4... Nd7 {[%clk 0:04:56.3]} 5. Qe2 {[%clk
0:04:39.9]} 5... Ndf6 {[%clk 0:04:54.9]} 6. c3 {[%clk 0:04:38.3]} 6... Nxe4
{[%clk 0:04:53.9]} 7. Qxe4 {[%clk 0:04:38.2]} 7... Nf6 {[%clk 0:04:53.5]} 8. Qc2
{[%clk 0:04:37.8]} 8... g6 {[%clk 0:04:52.4]} 9. Nf3 {[%clk 0:04:37.3]} 9... Bf5
{[%clk 0:04:51.2]} 10. Bd3 {[%clk 0:04:34.7]} 10... Bxd3 {[%clk 0:04:50]} 11.
Qxd3 {[%clk 0:04:34.4]} 11... Bg7 {[%clk 0:04:49.8]} 12. O-O {[%clk 0:04:33.2]}
12... O-O {[%clk 0:04:49.7]} 13. Re1 {[%clk 0:04:32.4]} 13... e6 {[%clk
0:04:49.1]} 14. Bg5 {[%clk 0:04:22.7]} 14... Qc7 {[%clk 0:04:48.1]} 15. Rad1
{[%clk 0:04:12.1]} 15... Rfe8 {[%clk 0:04:42.7]} 16. Ne5 {[%clk 0:04:06.8]}
16... Nd7 {[%clk 0:04:40.4]} 17. Ng4 {[%clk 0:03:43.6]} 17... h5 {[%clk
0:04:33.8]} 18. Ne3 {[%clk 0:03:34.5]} 18... Bf6 {[%clk 0:04:29]} 19. Bxf6
{[%clk 0:03:27.5]} 19... Nxf6 {[%clk 0:04:27.5]} 20. Nc4 {[%clk 0:03:20.3]}
20... Kg7 {[%clk 0:04:25.9]} 21. Ne5 {[%clk 0:03:13.9]} 21... Rad8 {[%clk
0:04:25]} 22. Qf3 {[%clk 0:03:09.1]} 22... Re7 {[%clk 0:04:22.3]} 23. Qf4 {[%clk
0:03:02.3]} 23... Nd5 {[%clk 0:04:18.2]} 24. Qh4 {[%clk 0:02:58.1]} 24... b5
{[%clk 0:04:16.1]} 25. Rd3 {[%clk 0:02:49.9]} 25... f6 {[%clk 0:03:58]} 26. Nf3
{[%clk 0:02:12.8]} 26... Qf4 {[%clk 0:03:55.9]} 27. Qh3 {[%clk 0:02:04.7]} 27...
Qg4 {[%clk 0:03:54.7]} 28. Qxg4 {[%clk 0:02:00.9]} 28... hxg4 {[%clk 0:03:53.4]}
29. Nd2 {[%clk 0:02:00.6]} 29... Nf4 {[%clk 0:03:41]} 30. Rde3 {[%clk
0:01:57.7]} 30... g5 {[%clk 0:03:38.7]} 31. Ne4 {[%clk 0:01:51.4]} 31... Kf7
{[%clk 0:03:35.2]} 32. Nc5 {[%clk 0:01:48.5]} 32... Rd6 {[%clk 0:03:34.2]} 33.
Ne4 {[%clk 0:01:45.9]} 33... Rd5 {[%clk 0:03:31.8]} 34. g3 {[%clk 0:01:36.8]}
34... Ng6 {[%clk 0:03:24.9]} 35. f3 {[%clk 0:01:20.6]} 35... gxf3 {[%clk
0:03:22.7]} 36. Rxf3 {[%clk 0:01:20.1]} 36... Rf5 {[%clk 0:03:20.4]} 37. Nd6+
{[%clk 0:01:19]} 37... Kf8 {[%clk 0:03:16.4]} 38. Nxf5 {[%clk 0:01:17.6]} 38...
exf5 {[%clk 0:03:15.9]} 39. Rxe7 {[%clk 0:01:10.9]} 39... Nxe7 {[%clk
0:03:15.8]} 40. Kf2 {[%clk 0:01:06.8]} 40... g4 {[%clk 0:03:14.5]} 41. Re3
{[%clk 0:00:46.1]} 41... Kf7 {[%clk 0:03:13.5]} 42. b3 {[%clk 0:00:42.5]} 42...
Nd5 {[%clk 0:03:12.2]} 43. Rd3 {[%clk 0:00:41.9]} 43... f4 {[%clk 0:03:10.3]}
44. c4 {[%clk 0:00:36.8]} 44... Nb4 {[%clk 0:03:05.4]} 45. Rd2 {[%clk 0:00:36]}
45... f3 {[%clk 0:03:01]} 46. a3 {[%clk 0:00:35.2]} 46... Na6 {[%clk 0:02:59]}
47. d5 {[%clk 0:00:33.8]} 47... cxd5 {[%clk 0:02:54.2]} 48. cxb5 {[%clk
0:00:30.5]} 48... Nc7 {[%clk 0:02:52.5]} 49. h3 {[%clk 0:00:22.6]} 49... f5
{[%clk 0:02:51]} 50. Rd4 {[%clk 0:00:19.3]} 50... Nxb5 {[%clk 0:02:48.9]} 51.
Rxd5 {[%clk 0:00:17.9]} 51... Nxa3 {[%clk 0:02:47.5]} 52. Rxf5+ {[%clk
0:00:17.5]} 52... Ke6 {[%clk 0:02:46.9]} 53. hxg4 {[%clk 0:00:16.7]} 53... Nc2
{[%clk 0:02:45.5]} 54. Ra5 {[%clk 0:00:14]} 54... Nd4 {[%clk 0:02:43.9]} 55.
Rxa7 {[%clk 0:00:13]} 55... Nxb3 {[%clk 0:02:42.9]} 56. Kxf3 {[%clk 0:00:11.8]}
56... Kf6 {[%clk 0:02:40.4]} 57. Kf4 {[%clk 0:00:11]} 57... Nd4 {[%clk
0:02:39.7]} 58. Ra6+ {[%clk 0:00:10.3]} 58... Kf7 {[%clk 0:02:38.8]} 59. Ke5
{[%clk 0:00:09.5]} 59... Nf3+ {[%clk 0:02:37.5]} 60. Kf5 {[%clk 0:00:05.5]}
60... Nd4+ {[%clk 0:02:36.6]} 1/2-1/2

[Event "Live Chess"]
[Site "Chess.com"]
[Date "2024.06.02"]
[Round "-"]
[White "koekoekoe"]
[Black "degringolade64"]
[Result "0-1"]
[WhiteElo "1961"]
[BlackElo "2127"]
[TimeControl "300"]
[EndTime "16:04:01 PDT"]
[Termination "degringolade64 won by checkmate"]

1. d4 {[%clk 0:04:58.7]} 1... Nf6 {[%clk 0:04:58.2]} 2. Bf4 {[%clk 0:04:58.2]}
2... d5 {[%clk 0:04:56.1]} 3. e3 {[%clk 0:04:57.7]} 3... c5 {[%clk 0:04:54.3]}
4. c3 {[%clk 0:04:57]} 4... Nc6 {[%clk 0:04:53.3]} 5. Nf3 {[%clk 0:04:55.9]}
5... Qb6 {[%clk 0:04:50.8]} 6. Qb3 {[%clk 0:04:54.3]} 6... c4 {[%clk 0:04:49.1]}
7. Qc2 {[%clk 0:04:50.8]} 7... Bf5 {[%clk 0:04:46.2]} 8. Qxf5 {[%clk 0:04:48]}
8... Qxb2 {[%clk 0:04:43.4]} 9. Be2 {[%clk 0:04:32.2]} 9... e6 {[%clk
0:04:41.9]} 10. Qg5 {[%clk 0:04:20.4]} 10... Qxa1 {[%clk 0:04:40.3]} 11. O-O
{[%clk 0:04:19]} 11... Qxa2 {[%clk 0:04:37.4]} 12. Ne5 {[%clk 0:04:16]} 12...
Qxe2 {[%clk 0:04:32.1]} 13. Nxc6 {[%clk 0:04:09.9]} 13... bxc6 {[%clk
0:04:30.7]} 14. Be5 {[%clk 0:04:05.9]} 14... Ne4 {[%clk 0:04:19.9]} 15. Qf4
{[%clk 0:03:57.4]} 15... g5 {[%clk 0:04:14.5]} 16. Qf3 {[%clk 0:03:46.2]} 16...
Qxf3 {[%clk 0:04:13.2]} 17. gxf3 {[%clk 0:03:46.1]} 17... f6 {[%clk 0:04:11]}
18. fxe4 {[%clk 0:03:42.7]} 18... fxe5 {[%clk 0:04:10]} 19. exd5 {[%clk
0:03:40.5]} 19... cxd5 {[%clk 0:04:07.4]} 20. Nd2 {[%clk 0:03:39.3]} 20... exd4
{[%clk 0:04:05.4]} 21. exd4 {[%clk 0:03:39.2]} 21... g4 {[%clk 0:03:57.3]} 22.
Re1 {[%clk 0:03:37.2]} 22... Kd7 {[%clk 0:03:55.8]} 23. Re5 {[%clk 0:03:30.9]}
23... Bh6 {[%clk 0:03:52.7]} 24. Nf1 {[%clk 0:03:28.8]} 24... Rhf8 {[%clk
0:03:43.5]} 25. Rh5 {[%clk 0:03:26.1]} 25... Rf6 {[%clk 0:03:38.4]} 26. Ne3
{[%clk 0:03:23.7]} 26... Rg8 {[%clk 0:03:35.6]} 27. Kg2 {[%clk 0:03:19.1]} 27...
Kd6 {[%clk 0:03:24.7]} 28. Kg3 {[%clk 0:03:13.1]} 28... Bxe3 {[%clk 0:03:23.6]}
29. fxe3 {[%clk 0:03:12.6]} 29... Rf3+ {[%clk 0:03:22.2]} 30. Kh4 {[%clk
0:03:11.5]} 30... Rh3# {[%clk 0:03:20.6]} 0-1

[Event "Live Chess"]
[Site "Chess.com"]
[Date "2024.06.02"]
[Round "-"]
[White "blunderabit"]
[Black "booktrunk"]
[Result "0-1"]
[WhiteElo "1776"]
[BlackElo "1485"]
[TimeControl "300"]
[EndTime "16:04:18 PDT"]
[Termination "booktrunk won by resignation"]

1. e4 {[%clk 0:04:56.6]} 1... b6 {[%clk 0:04:58.6]} 2. d4 {[%clk 0:04:54]} 2...
Bb7 {[%clk 0:04:53.9]} 3. Nc3 {[%clk 0:04:52.7]} 3... e6 {[%clk 0:04:50]} 4. a3
{[%clk 0:04:52.1]} 4... h6 {[%clk 0:04:41.7]} 5. Nf3 {[%clk 0:04:47.4]} 5... Nf6
{[%clk 0:04:38.4]} 6. Bd3 {[%clk 0:04:44.8]} 6... c5 {[%clk 0:04:37.1]} 7. O-O
{[%clk 0:04:41.5]} 7... cxd4 {[%clk 0:04:33.4]} 8. Nxd4 {[%clk 0:04:39.6]} 8...
Bc5 {[%clk 0:04:32.1]} 9. Nb3 {[%clk 0:04:35.2]} 9... Be7 {[%clk 0:04:29.4]} 10.
e5 {[%clk 0:04:25.4]} 10... Nd5 {[%clk 0:04:06.2]} 11. Qg4 {[%clk 0:04:22.1]}
11... Bg5 {[%clk 0:03:59.5]} 12. f4 {[%clk 0:04:14.7]} 12... Be7 {[%clk
0:03:44.7]} 13. Qxg7 {[%clk 0:04:12.6]} 13... Rf8 {[%clk 0:03:43.7]} 14. Ne4
{[%clk 0:04:03]} 14... d6 {[%clk 0:03:26.7]} 15. exd6 {[%clk 0:03:57.1]} 15...
Bxd6 {[%clk 0:03:25.4]} 16. Qxh6 {[%clk 0:03:40.5]} 16... Be7 {[%clk 0:03:17.6]}
17. Bd2 {[%clk 0:03:33.6]} 17... Nd7 {[%clk 0:03:15.4]} 18. Rae1 {[%clk
0:03:18.9]} 18... Qc7 {[%clk 0:03:13.5]} 19. Nd4 {[%clk 0:02:21.2]} 19... O-O-O
{[%clk 0:03:09.8]} 20. Nb5 {[%clk 0:02:19.5]} 20... Qb8 {[%clk 0:03:02.9]} 21.
Qg7 {[%clk 0:01:59.7]} 21... Bf6 {[%clk 0:02:46.2]} 22. Nxf6 {[%clk 0:01:55.8]}
22... N7xf6 {[%clk 0:02:44]} 23. Qg3 {[%clk 0:01:41.8]} 23... a6 {[%clk
0:02:42.1]} 24. c4 {[%clk 0:01:26.9]} 24... Ne7 {[%clk 0:02:31.6]} 25. Nc3
{[%clk 0:01:19.5]} 25... Rg8 {[%clk 0:02:30]} 26. Qf2 {[%clk 0:00:59.3]} 26...
Rxg2+ {[%clk 0:02:27.3]} 27. Qxg2 {[%clk 0:00:58.1]} 27... Bxg2 {[%clk
0:02:26.7]} 28. Kxg2 {[%clk 0:00:57.5]} 28... Qb7+ {[%clk 0:02:24.6]} 29. Rf3
{[%clk 0:00:49.6]} 29... Rxd3 {[%clk 0:02:20.5]} 0-1

[Event "Live Chess"]
[Site "Chess.com"]
[Date "2024.06.02"]
[Round "-"]
[White "IgorSchukin"]
[Black "grillage"]
[Result "1/2-1/2"]
[WhiteElo "1718"]
[BlackElo "1867"]
[TimeControl "300"]
[EndTime "16:04:35 PDT"]
[Termination "Game drawn - insufficient material"]

1. e4 {[%clk 0:04:57.2]} 1... d5 {[%clk 0:04:57.9]} 2. exd5 {[%clk 0:04:55.8]}
2... Qxd5 {[%clk 0:04:57.2]} 3. Nc3 {[%clk 0:04:54.8]} 3... Qd8 {[%clk
0:04:55.9]} 4. g3 {[%clk 0:04:52.9]} 4... Nf6 {[%clk 0:04:53.6]} 5. Bg2 {[%clk
0:04:52]} 5... c6 {[%clk 0:04:52.2]} 6. Nf3 {[%clk 0:04:50.9]} 6... Bg4 {[%clk
0:04:51.1]} 7. O-O {[%clk 0:04:49.9]} 7... e6 {[%clk 0:04:50.2]} 8. h3 {[%clk
0:04:49]} 8... Bxf3 {[%clk 0:04:48.6]} 9. Qxf3 {[%clk 0:04:47.1]} 9... Bd6
{[%clk 0:04:45.9]} 10. d4 {[%clk 0:04:43.8]} 10... Nbd7 {[%clk 0:04:44.5]} 11.
Bg5 {[%clk 0:04:40.4]} 11... O-O {[%clk 0:04:41.8]} 12. Rfe1 {[%clk 0:04:38]}
12... Qc7 {[%clk 0:04:34.2]} 13. Rad1 {[%clk 0:04:34.2]} 13... Rfe8 {[%clk
0:04:31.2]} 14. Bxf6 {[%clk 0:04:31.2]} 14... Nxf6 {[%clk 0:04:29.6]} 15. Ne4
{[%clk 0:04:30.3]} 15... Nxe4 {[%clk 0:04:27.9]} 16. Qxe4 {[%clk 0:04:28.7]}
16... Rad8 {[%clk 0:04:20.7]} 17. a3 {[%clk 0:04:25.6]} 17... Be7 {[%clk
0:04:16]} 18. b4 {[%clk 0:04:17]} 18... a6 {[%clk 0:04:11.4]} 19. c4 {[%clk
0:04:14.8]} 19... Bf6 {[%clk 0:04:08.8]} 20. d5 {[%clk 0:04:09.6]} 20... cxd5
{[%clk 0:04:05]} 21. cxd5 {[%clk 0:04:08.3]} 21... g6 {[%clk 0:03:56.2]} 22.
dxe6 {[%clk 0:04:05.3]} 22... Rxe6 {[%clk 0:03:52.4]} 23. Rxd8+ {[%clk
0:04:02.7]} 23... Qxd8 {[%clk 0:03:51.1]} 24. Qb1 {[%clk 0:03:59.3]} 24... Rxe1+
{[%clk 0:03:45.8]} 25. Qxe1 {[%clk 0:03:57.3]} 25... Qb6 {[%clk 0:03:36.9]} 26.
Qe4 {[%clk 0:03:47.5]} 26... Bd4 {[%clk 0:03:30.9]} 27. Qxb7 {[%clk 0:03:43.2]}
27... Bxf2+ {[%clk 0:03:29.2]} 28. Kh2 {[%clk 0:03:41.6]} 28... Qd6 {[%clk
0:03:16.2]} 29. Qf3 {[%clk 0:03:37.6]} 29... Bd4 {[%clk 0:03:10.6]} 30. Bf1
{[%clk 0:03:31.2]} 30... Be5 {[%clk 0:03:06.3]} 31. Qd3 {[%clk 0:03:12]} 31...
h5 {[%clk 0:03:00.2]} 32. Qxd6 {[%clk 0:03:08.2]} 32... Bxd6 {[%clk 0:02:57.1]}
33. Bxa6 {[%clk 0:03:06.2]} 33... h4 {[%clk 0:02:56.1]} 34. b5 {[%clk
0:02:59.2]} 34... Bxa3 {[%clk 0:02:49.7]} 35. gxh4 {[%clk 0:02:57.4]} 35... Bd6+
{[%clk 0:02:48.2]} 36. Kg2 {[%clk 0:02:56.1]} 36... Kg7 {[%clk 0:02:47.2]} 37.
b6 {[%clk 0:02:54.4]} 37... Kh6 {[%clk 0:02:46.2]} 38. b7 {[%clk 0:02:53.3]}
38... Kh5 {[%clk 0:02:45.3]} 39. Bc4 {[%clk 0:02:48.7]} 39... f6 {[%clk
0:02:36.6]} 40. Bf7 {[%clk 0:02:46.6]} 40... Kxh4 {[%clk 0:02:34.2]} 41. Bxg6
{[%clk 0:02:44.7]} 41... Kg5 {[%clk 0:02:31.7]} 42. Bd3 {[%clk 0:02:34.3]} 42...
f5 {[%clk 0:02:30.7]} 43. Kf3 {[%clk 0:02:33]} 43... f4 {[%clk 0:02:28.6]} 44.
Bf1 {[%clk 0:02:27.5]} 44... Kh4 {[%clk 0:02:27.4]} 45. Ke4 {[%clk 0:02:24.4]}
45... Kg3 {[%clk 0:02:23.6]} 46. Kd5 {[%clk 0:02:21.4]} 46... Bb8 {[%clk
0:02:22.7]} 47. Kc6 {[%clk 0:02:19.4]} 47... f3 {[%clk 0:02:19.1]} 48. Kd7
{[%clk 0:02:16.5]} 48... Kf2 {[%clk 0:02:15.2]} 49. Bb5 {[%clk 0:01:55]} 49...
Kg3 {[%clk 0:02:12]} 50. Kc8 {[%clk 0:01:51]} 50... Bf4 {[%clk 0:02:10]} 51.
b8=Q {[%clk 0:01:45.7]} 51... Bxb8 {[%clk 0:02:08.5]} 52. Kxb8 {[%clk
0:01:44.6]} 52... Kxh3 {[%clk 0:02:07.6]} 53. Kc7 {[%clk 0:01:43.5]} 53... f2
{[%clk 0:02:05.8]} 54. Kd6 {[%clk 0:01:42.3]} 54... Kg2 {[%clk 0:02:05]} 55. Ke5
{[%clk 0:01:41.1]} 55... f1=Q {[%clk 0:02:02.8]} 56. Bxf1+ {[%clk 0:01:39.2]}
1/2-1/2

[Event "Live Chess"]
[Site "Chess.com"]
[Date "2024.06.02"]
[Round "-"]
[White "gmnorfolk"]
[Black "gobbles19"]
[Result "1-0"]
[WhiteElo "2133"]
[BlackElo "2276"]
[TimeControl "300"]
[EndTime "16:04:46 PDT"]
[Termination "gmnorfolk won by resignation"]

1. d4 {[%clk 0:04:56.5]} 1... Nf6 {[%clk 0:04:58.4]} 2. c4 {[%clk 0:04:55.1]}
2... e6 {[%clk 0:04:57]} 3. Nc3 {[%clk 0:04:53.3]} 3... c5 {[%clk 0:04:56.5]} 4.
Nf3 {[%clk 0:04:49.2]} 4... cxd4 {[%clk 0:04:55]} 5. Nxd4 {[%clk 0:04:47.1]}
5... Bb4 {[%clk 0:04:53.2]} 6. g3 {[%clk 0:04:45.6]} 6... d5 {[%clk 0:04:51.3]}
7. Qa4+ {[%clk 0:04:39.6]} 7... Nc6 {[%clk 0:04:43.5]} 8. Nxc6 {[%clk
0:04:37.4]} 8... Bxc3+ {[%clk 0:04:41.9]} 9. bxc3 {[%clk 0:04:37.3]} 9... bxc6
{[%clk 0:04:33.6]} 10. Bg2 {[%clk 0:04:29.4]} 10... Bd7 {[%clk 0:04:29.1]} 11.
O-O {[%clk 0:04:26]} 11... O-O {[%clk 0:04:28.3]} 12. Ba3 {[%clk 0:04:17.1]}
12... Re8 {[%clk 0:04:26.1]} 13. Bc5 {[%clk 0:04:09.6]} 13... e5 {[%clk
0:04:15.6]} 14. Rfd1 {[%clk 0:04:04.3]} 14... e4 {[%clk 0:04:13.8]} 15. Qc2
{[%clk 0:03:53]} 15... Qc8 {[%clk 0:04:08.5]} 16. Bd4 {[%clk 0:03:49.4]} 16...
Ng4 {[%clk 0:04:02.6]} 17. cxd5 {[%clk 0:03:45.7]} 17... cxd5 {[%clk 0:04:02.5]}
18. h3 {[%clk 0:03:23]} 18... Ne5 {[%clk 0:04:00.4]} 19. Kh2 {[%clk 0:03:17.3]}
19... Nc4 {[%clk 0:03:57.1]} 20. Qc1 {[%clk 0:03:05.6]} 20... Qa6 {[%clk
0:03:52.3]} 21. Qg5 {[%clk 0:03:01.7]} 21... Qg6 {[%clk 0:03:25.7]} 22. Qxd5
{[%clk 0:03:00.1]} 22... Be6 {[%clk 0:03:21.4]} 23. Qxe4 {[%clk 0:02:57.4]}
23... Bf5 {[%clk 0:03:15]} 24. Qf4 {[%clk 0:02:36.6]} 24... Rad8 {[%clk
0:03:12]} 25. g4 {[%clk 0:02:22.9]} 25... Be4 {[%clk 0:03:03.5]} 26. f3 {[%clk
0:02:15.4]} 26... Bc2 {[%clk 0:02:53.5]} 27. Re1 {[%clk 0:02:09.4]} 27... h5
{[%clk 0:02:42.5]} 28. e4 {[%clk 0:02:05.8]} 28... hxg4 {[%clk 0:02:39.9]} 29.
hxg4 {[%clk 0:02:01.7]} 29... Ba4 {[%clk 0:02:32.8]} 30. Kg3 {[%clk 0:01:55]}
30... Nb2 {[%clk 0:02:20]} 31. Qd2 {[%clk 0:01:37]} 31... Nc4 {[%clk 0:02:13.3]}
32. Qf2 {[%clk 0:01:35.6]} 32... Qd6+ {[%clk 0:02:05.4]} 33. f4 {[%clk
0:01:27.2]} 33... Rb8 {[%clk 0:01:50.5]} 34. e5 {[%clk 0:01:26.2]} 34... Qd7
{[%clk 0:01:44]} 35. Re2 {[%clk 0:01:24.8]} 35... Bb5 {[%clk 0:01:33.1]} 36. a4
{[%clk 0:01:19.6]} 36... Ba6 {[%clk 0:01:29.7]} 37. Be4 {[%clk 0:01:13.1]} 37...
Bc8 {[%clk 0:01:08.9]} 38. Bf5 {[%clk 0:01:01.7]} 38... Qc6 {[%clk 0:01:07.4]}
39. Qh2 {[%clk 0:00:55]} 39... Bxf5 {[%clk 0:01:05.6]} 40. gxf5 {[%clk
0:00:52.5]} 40... Qd7 {[%clk 0:00:41.8]} 41. Rh1 {[%clk 0:00:47.5]} 1-0

[Event "Live Chess"]
[Site "Chess.com"]
[Date "2024.06.02"]
[Round "-"]
[White "TheSmoulderingMaster"]
[Black "nigelst"]
[Result "1-0"]
[WhiteElo "1745"]
[BlackElo "1694"]
[TimeControl "300"]
[EndTime "16:05:49 PDT"]
[Termination "TheSmoulderingMaster won by resignation"]

1. e4 {[%clk 0:04:57.9]} 1... c6 {[%clk 0:04:57.1]} 2. d4 {[%clk 0:04:56.6]}
2... d5 {[%clk 0:04:53.1]} 3. Nc3 {[%clk 0:04:55.7]} 3... dxe4 {[%clk
0:04:51.2]} 4. Nxe4 {[%clk 0:04:54.9]} 4... Bf5 {[%clk 0:04:49.5]} 5. Ng3 {[%clk
0:04:52.8]} 5... Bg6 {[%clk 0:04:48.5]} 6. Nh3 {[%clk 0:04:51.2]} 6... e6 {[%clk
0:04:45.1]} 7. Nf4 {[%clk 0:04:50.1]} 7... Bd6 {[%clk 0:04:43.8]} 8. h4 {[%clk
0:04:48.6]} 8... Qc7 {[%clk 0:04:41.8]} 9. h5 {[%clk 0:04:47.6]} 9... Bxf4
{[%clk 0:04:40.3]} 10. hxg6 {[%clk 0:04:46]} 10... h6 {[%clk 0:04:37.5]} 11. Qf3
{[%clk 0:04:41.7]} 11... Bxc1 {[%clk 0:04:33.3]} 12. Rxc1 {[%clk 0:04:40.1]}
12... fxg6 {[%clk 0:04:28.7]} 13. Bc4 {[%clk 0:04:36.1]} 13... Qd6 {[%clk
0:04:23.8]} 14. c3 {[%clk 0:04:33.1]} 14... Nf6 {[%clk 0:04:21.3]} 15. O-O
{[%clk 0:04:30]} 15... O-O {[%clk 0:04:18.3]} 16. Rfe1 {[%clk 0:04:28.9]} 16...
Nh5 {[%clk 0:04:09.7]} 17. Rxe6 {[%clk 0:04:17.9]} 17... Rxf3 {[%clk 0:03:31.4]}
18. Rxd6+ {[%clk 0:04:12.7]} 18... Rf7 {[%clk 0:03:29.7]} 19. Rd8+ {[%clk
0:04:10.5]} 19... Kh7 {[%clk 0:03:27.7]} 20. Bxf7 {[%clk 0:04:09.5]} 1-0